bitfinex/quotes_ETHUSD_20250702
["timestamp","ask_amount","ask_price","bid_price","bid_amount"]
[1751458878650,0.02,2447.7,2447.3,33.96655971]
[1751458878859,0.02,2447.7,2447.3,30.40765971]
[1751458879058,0.02,2447.7,2447.3,20.13807471]
[1751458879636,0.02,2447.7,2447.3,24.71786671]
[1751458879967,0.02,2447.7,2447.3,22.87749671]
[1751458880744,0.02,2447.7,2447.3,21.22010671]
[1751458881072,0.02,2447.7,2447.3,23.27910671]
[1751458881643,0.02,2447.7,2447.3,16.77125871]
[1751458881842,0.02,2447.7,2447.3,23.12910671]
[1751458882075,0.02,2447.7,2447.3,23.12810671]
[1751458882652,0.02,2447.7,2447.3,22.90482671]
[1751458883146,0.02,2447.7,2447.3,16.77025871]
[1751458883592,0.02,2447.7,2447.3,2.55122297]
[1751458883749,0.02,2447.7,2447.3,8.969]
[1751458884096,0.02,2447.7,2447.3,0.204]
[1751458884273,0.8314,2447.4,2447.3,2.269]
[1751458884449,0.8314,2447.4,2447.3,8.97]
[1751458885355,0.8314,2447.4,2447.3,0.204]
[1751458885684,0.8314,2447.4,2447.3,6.904]
[1751458885859,0.8314,2447.4,2447.3,8.989]
[1751458886041,0.8314,2447.4,2447.3,0.224]
[1751458886245,0.8314,2447.4,2447.3,6.923]
[1751458888152,0.8314,2447.4,2447.3,7.44503149]
[1751458888351,0.8314,2447.4,2447.3,6.923]
[1751458889078,1.80414625,2447.4,2447.3,6.923]
[1751458890661,0.99274625,2447.4,2447.3,6.923]
[1751458894350,0.99274625,2447.4,2447.3,8.983]
[1751458895789,0.99274625,2447.4,2447.3,15.39943784]
[1751458895958,0.99274625,2447.4,2447.3,31.514496]
[1751458897283,0.99274625,2447.4,2447.3,27.42836026]
[1751458897486,0.99274625,2447.4,2447.3,31.514496]
[1751458898757,0.02,2447.6,2447.4,14.08591451]
[1751458899088,0.02,2447.6,2447.5,16.41643784]
[1751458899274,0.02,2447.6,2447.5,19.77187882]
[1751458900274,0.02,2447.6,2447.5,28.52687882]
[1751458900584,0.02,2447.6,2447.5,28.52587882]
[1751458901458,0.02,2447.6,2447.5,22.10744098]
[1751458903069,0.02,2447.6,2447.5,13.35544098]
[1751458903289,0.02,2447.6,2447.5,22.10744098]
[1751458903791,0.02,2447.6,2447.5,13.35544098]
[1751458904088,0.8525,2447.6,2447.5,8.956]
[1751458906593,0.8525,2447.6,2447.5,0.204]
[1751458906757,0.8525,2447.6,2447.5,8.956]
[1751458906962,0.8525,2447.6,2447.5,0.204]
[1751458907457,0.8525,2447.6,2447.5,6.891]
[1751458908572,0.8525,2447.6,2447.5,0.204]
[1751458908773,0.8525,2447.6,2447.5,8.946]
[1751458909672,0.8525,2447.6,2447.5,0.204]
[1751458909868,0.8525,2447.6,2447.5,8.946]
[1751458910258,0.8525,2447.6,2447.5,0.204]
[1751458910663,0.8525,2447.6,2447.5,8.946]
[1751458911695,0.8525,2447.6,2447.5,0.204]
[1751458911993,0.8525,2447.6,2447.5,8.946]
[1751458912789,0.02,2447.6,2447.5,8.946]
[1751458914964,0.02,2447.6,2447.5,2.259]
[1751458918398,0.02,2447.6,2447.5,0.204]
[1751458918597,0.8412,2447.6,2447.5,2.259]
[1751458919097,0.8412,2447.6,2447.5,0.204]
[1751458921473,0.8412,2447.6,2447.4,0.204]
[1751458922087,0.8412,2447.6,2447.3,0.02]
[1751458922296,0.75,2447.4,2447.3,0.02]
[1751458923773,1.72757245,2447.4,2447.3,0.02]
[1751458923973,11.72757245,2447.4,2447.3,0.02]
[1751458924677,13.35546605,2447.4,2447.3,0.02]
[1751458925076,11.72757245,2447.4,2447.3,0.02]
[1751458925278,15.48743088,2447.4,2447.3,0.02]
[1751458925878,15.48564606,2447.4,2447.3,0.02]
[1751458927802,21.9020839,2447.4,2447.3,0.02]
[1751458928214,20.27575394,2447.4,2447.3,0.02]
[1751458929619,20.28575394,2447.4,2447.3,0.02]
[1751458930804,13.8693161,2447.4,2447.3,0.02]
[1751458938811,1.93978763,2447.4,2447.3,0.02]
[1751458939433,1.18978763,2447.4,2447.3,0.02]
[1751458939791,0.214,2447.4,2447.3,0.02]
[1751458940018,1.18978763,2447.4,2447.3,0.02]
[1751458940238,0.214,2447.4,2447.3,0.02]
[1751458940410,1.18978763,2447.4,2447.3,0.02]
[1751458940583,0.214,2447.4,2447.3,0.02]
[1751458940788,1.18978763,2447.4,2447.3,0.02]
[1751458941014,0.01,2447.4,2447.3,0.224]
[1751458941628,0.98265239,2447.4,2447.3,0.224]
[1751458941801,0.01,2447.4,2447.3,0.224]
[1751458942121,0.98265239,2447.4,2447.3,0.224]
[1751458942426,0.01,2447.4,2447.3,0.224]
[1751458942628,0.98265239,2447.4,2447.3,0.224]
[1751458942789,0.01,2447.4,2447.3,0.224]
[1751458947429,0.01,2447.4,2447.3,2.278]
[1751458947901,0.98428717,2447.4,2447.3,2.278]
[1751458950723,1.73858717,2447.4,2447.3,0.224]
[1751458951020,2.55608967,2447.4,2447.3,2.074]
[1751458951438,8.97252751,2447.4,2447.3,0.02]
[1751458951594,40.55,2447.2,2446.4,2.278]
[1751458951955,17.20353784,2446.5,2446.4,0.02]
[1751458952824,18.17935373,2446.5,2446.4,0.02]
[1751458953416,11.76291589,2446.5,2446.4,0.02]
[1751458953813,13.59324585,2446.5,2446.4,0.02]
[1751458954419,11.96691589,2446.5,2446.4,0.02]
[1751458954619,12.78441839,2446.5,2446.4,0.02]
[1751458960643,11.96691589,2446.5,2446.4,0.02]
[1751458961146,1.96691589,2446.5,2446.4,0.02]
[1751458962216,0.9911,2446.5,2446.4,0.02]
[1751458962416,1.96691589,2446.5,2446.4,0.02]
[1751458962643,0.9911,2446.5,2446.4,0.02]
[1751458962850,1.96691589,2446.5,2446.4,0.02]
[1751458963027,0.9911,2446.5,2446.4,0.02]
[1751458963228,1.96691589,2446.5,2446.4,0.02]
[1751458963451,0.9911,2446.5,2446.4,0.02]
[1751458963649,1.96691589,2446.5,2446.4,0.02]
[1751458963830,0.9911,2446.5,2446.4,0.02]
[1751458964034,1.96691589,2446.5,2446.4,0.02]
[1751458964221,0.9911,2446.5,2446.4,0.02]
[1751458966254,2.85659159,2446.5,2446.4,0.02]
[1751458968618,2.06949159,2446.5,2446.4,0.02]
[1751458968828,0.204,2446.5,2446.4,0.02]
[1751458969158,0.97142364,2446.6,2446.4,0.02]
[1751458969368,0.97142364,2446.7,2446.4,0.02]
[1751458969538,0.97142364,2446.8,2446.4,0.224]
[1751458970272,0.97142364,2446.7,2446.4,0.224]
[1751458970463,0.97142364,2446.8,2446.4,0.224]
[1751458973356,0.97142364,2446.7,2446.4,0.224]
[1751458973670,0.97142364,2446.8,2446.4,0.224]
[1751458974386,0.204,2446.9,2446.4,0.224]
[1751458974547,0.97215208,2446.8,2446.4,0.224]
[1751458974743,0.97214802,2446.8,2446.4,0.224]
[1751458974982,0.204,2446.9,2446.4,0.224]
[1751458975178,0.97227298,2446.8,2446.4,0.224]
[1751458975486,0.97227298,2446.7,2446.4,0.224]
[1751458975776,0.97227298,2446.8,2446.4,0.224]
[1751458975982,0.204,2446.9,2446.4,0.224]
[1751458976149,0.97265411,2446.8,2446.4,0.224]
[1751458976488,0.204,2447.1,2446.7,0.204]
[1751458976679,0.97296658,2447.0,2446.7,2.258]
[1751458976981,0.97296658,2446.9,2446.7,2.258]
[1751458977153,0.97296658,2446.8,2446.7,2.258]
[1751458977348,0.97296658,2447.0,2446.8,0.7538]
[1751458977665,1.63632996,2447.4,2447.0,0.204]
[1751458977866,0.97344438,2447.3,2447.0,0.204]
[1751458978065,0.97344438,2447.2,2446.8,0.822]
[1751458978248,0.97344438,2447.1,2446.8,0.822]
[1751458978580,0.01,2447.4,2447.2,0.7554]
[1751458978778,0.01,2447.4,2447.3,2.054]
[1751458978979,0.98382644,2447.4,2447.3,2.258]
[1751458980653,1.78432644,2447.4,2447.1,2.053]
[1751458980853,0.97382644,2447.3,2447.1,2.053]
[1751458981053,0.97382644,2447.2,2447.1,2.053]
[1751458981884,0.97382644,2447.2,2447.1,2.257]
[1751458982882,0.01,2447.4,2447.1,2.257]
[1751458984550,0.01,2447.4,2447.2,2.053]
[1751458984982,0.01,2447.4,2447.1,0.204]
[1751458985187,0.01,2447.4,2447.2,2.053]
[1751458985990,0.01,2447.4,2447.2,2.8071]
[1751458986153,0.01,2447.4,2447.3,0.204]
[1751458986462,0.98379618,2447.4,2447.3,0.204]
[1751458987580,0.98379618,2447.4,2447.2,2.053]
[1751458987887,0.01,2447.4,2447.2,2.053]
[1751458996498,0.828,2447.4,2446.8,0.7851]
[1751458996798,0.97420998,2447.3,2447.0,2.053]
[1751458996986,0.84226478,2447.3,2447.0,2.053]
[1751458997187,7.25870262,2447.3,2446.9,0.204]
[1751458997498,0.97442288,2447.2,2446.9,2.257]
[1751458997705,1.032,2447.4,2446.9,0.204]
[1751458997892,0.9744135,2447.3,2446.9,0.204]
[1751458998072,1.032,2447.4,2446.9,0.204]
[1751458998273,0.97439703,2447.3,2446.9,0.204]
[1751458998484,0.828,2447.4,2446.9,0.7851]
[1751458998806,0.97468927,2447.3,2447.0,0.204]
[1751458999101,0.01,2447.3,2447.0,0.204]
[1751459000400,0.204,2447.1,2446.9,2.071]
[1751459000973,0.204,2447.1,2446.9,0.02]
[1751459003109,0.7712,2447.0,2446.9,0.02]
[1751459003407,1.51036378,2447.0,2446.9,0.02]
[1751459004108,0.204,2447.1,2446.9,0.02]
[1751459004310,0.97629678,2447.0,2446.9,0.02]
[1751459010797,0.767,2447.0,2446.9,0.02]
[1751459011740,1.317,2447.0,2446.9,0.02]
[1751459012039,2.44128726,2447.0,2446.9,0.02]
[1751459012240,4.99515977,2447.0,2446.9,0.02]
[1751459012551,14.99515977,2447.0,2446.9,0.02]
[1751459012700,44.99515977,2447.0,2446.9,0.02]
[1751459013004,10.55,2446.7,2446.4,0.02]
[1751459013209,6.41643784,2446.5,2446.4,0.02]
[1751459013416,9.54399246,2446.5,2446.4,0.02]
[1751459013809,11.1706772,2446.5,2446.4,0.02]
[1751459014004,21.7206772,2446.5,2446.4,0.02]
[1751459014210,20.09399246,2446.5,2446.4,0.02]
[1751459015398,21.71734933,2446.5,2446.4,0.02]
[1751459017330,50.09399246,2446.5,2446.4,0.02]
[1751459017515,51.71734933,2446.5,2446.4,0.02]
[1751459017719,50.09399246,2446.5,2446.4,0.02]
[1751459018238,51.71477469,2446.5,2446.4,0.02]
[1751459018640,58.39577469,2446.5,2446.4,0.02]
[1751459019629,59.21501958,2446.5,2446.4,0.02]
[1751459021452,56.77499246,2446.5,2446.4,0.02]
[1751459021767,59.21501958,2446.5,2446.4,0.02]
[1751459022267,59.76142705,2446.5,2446.4,0.02]
[1751459022423,57.89927972,2446.5,2446.4,0.02]
[1751459022753,60.32606117,2446.5,2446.4,0.02]
[1751459023047,11.5538,2446.4,2446.3,0.02]
[1751459023261,45.77691986,2446.4,2446.3,0.02]
[1751459023447,48.98978453,2446.4,2446.3,0.02]
[1751459023623,41.3399,2446.2,2446.1,0.02]
[1751459023823,41.3399,2446.2,2445.9,0.02]
[1751459023824,40.55,2446.0,2445.9,0.02]
[1751459024044,55.96075615,2446.0,2445.9,0.02]
[1751459024266,57.90337972,2446.0,2445.9,0.02]
[1751459024560,57.90337972,2446.0,2445.4,0.02]
[1751459024854,47.23023784,2445.5,2445.4,0.02]
[1751459025042,54.88824868,2445.5,2445.4,0.02]
[1751459025244,55.43824868,2445.5,2445.4,0.02]
[1751459025445,58.13895023,2445.5,2445.4,0.02]
[1751459026338,59.25580562,2445.5,2445.4,0.02]
[1751459029761,60.87303849,2445.5,2445.4,0.02]
[1751459030661,54.19103849,2445.5,2445.4,0.02]
[1751459030861,62.3471587,2445.5,2445.4,0.02]
[1751459031333,47.19672086,2445.5,2445.4,0.02]
[1751459031534,61.80075123,2445.5,2445.4,0.02]
[1751459032834,31.80075123,2445.5,2445.4,0.02]
[1751459033034,61.80075123,2445.5,2445.4,0.02]
[1751459033366,62.3471587,2445.5,2445.4,0.02]
[1751459034333,60.72992583,2445.5,2445.4,0.02]
[1751459036366,63.15671053,2445.5,2445.4,0.02]
[1751459036535,63.73459032,2445.5,2445.4,0.02]
[1751459036933,10.55,2445.4,2445.0,0.1050212]
[1751459037172,49.4035519,2445.1,2445.0,0.1050212]
[1751459037335,58.17941813,2445.1,2445.0,0.1050212]
[1751459037757,0.55,2444.7,2444.4,0.01]
[1751459038074,16.41643784,2444.5,2444.4,0.01]
[1751459038249,19.79001218,2444.5,2444.4,0.01]
[1751459038632,13.37357434,2444.5,2444.4,0.01]
[1751459038835,0.204,2444.5,2444.4,0.8062]
[1751459039068,16.887,2444.5,2444.4,0.8062]
[1751459039580,16.887,2444.5,2444.4,0.01]
[1751459039742,24.27117307,2444.5,2444.4,0.01]
[1751459039936,26.69829038,2444.5,2444.4,0.01]
[1751459040157,26.49429038,2444.5,2444.4,0.01]
[1751459041369,10.96773523,2444.5,2444.4,0.8411]
[1751459041968,17.65173523,2444.5,2444.4,0.8411]
[1751459042141,7.65073523,2444.5,2444.4,0.8411]
[1751459042851,7.65173523,2444.5,2444.4,0.8411]
[1751459043766,0.96773523,2444.5,2444.4,0.8411]
[1751459045440,0.96773523,2444.5,2444.4,0.01]
[1751459047268,10.96773523,2444.5,2444.4,0.01]
[1751459048383,12.57874929,2444.5,2444.4,0.01]
[1751459050282,12.78274929,2444.5,2444.4,0.01]
[1751459050457,14.97210269,2444.5,2444.4,0.01]
[1751459051280,13.36108863,2444.5,2444.4,0.01]
[1751459051873,11.17173523,2444.5,2444.4,0.01]
[1751459052265,10.07751993,2444.5,2444.4,0.01]
[1751459053153,7.65073523,2444.5,2444.4,0.01]
[1751459053356,10.07751993,2444.5,2444.4,0.01]
[1751459054089,3.39451993,2444.5,2444.4,0.01]
[1751459054291,3.59851993,2444.5,2444.4,0.01]
[1751459054498,2.19988722,2444.5,2444.4,0.01]
[1751459054885,2.19988722,2444.5,2444.1,0.7825]
[1751459055101,2.19988722,2444.5,2443.9,0.204]
[1751459055102,12.6419183,2444.3,2443.9,0.8314]
[1751459055266,1.62518447,2444.1,2443.9,0.8314]
[1751459055463,0.96773523,2444.0,2443.9,0.8314]
[1751459055770,2.5929197,2444.0,2443.8,0.204]
[1751459055970,2.5929197,2444.0,2443.7,0.8314]
[1751459055971,0.96773523,2443.9,2443.7,0.8314]
[1751459056169,0.96773523,2443.8,2443.7,0.8314]
[1751459056392,2.5929197,2443.8,2443.7,0.8314]
[1751459056694,3.9683035,2443.8,2443.4,1.0281]
[1751459056887,0.96773523,2443.7,2443.4,1.0281]
[1751459057085,0.96773523,2443.6,2443.4,1.0281]
[1751459057463,2.5929197,2443.6,2443.4,1.0281]
[1751459058762,0.96773523,2443.6,2443.4,1.0281]
[1751459059902,0.96773523,2443.6,2443.4,0.204]
[1751459060195,2.33831296,2443.6,2443.2,0.7968]
[1751459061398,3.96003624,2443.6,2443.2,0.7968]
[1751459061598,15.4377508,2443.6,2443.0,1.0212]
[1751459061800,9.02131296,2443.6,2443.0,1.0212]
[1751459062208,9.02131296,2443.6,2443.0,0.8172]
[1751459063106,11.45923126,2443.6,2443.0,1.0212]
[1751459063404,9.02131296,2443.6,2443.0,1.0212]
[1751459064483,10.64145753,2443.6,2443.0,1.0212]
[1751459064702,9.02131296,2443.6,2443.0,1.0212]
[1751459065456,10.64204436,2443.6,2443.4,0.7937]
[1751459065585,10.64204436,2443.6,2443.2,0.204]
[1751459065780,9.02231296,2443.6,2443.2,0.9707]
[1751459066302,10.64171077,2443.6,2443.2,0.7667]
[1751459066471,10.64171077,2443.6,2443.0,1.0008]
[1751459066870,15.4387508,2443.6,2443.0,1.0008]
[1751459067301,17.05770017,2443.6,2443.0,1.0008]
[1751459068882,17.05770017,2443.6,2443.0,0.7968]
[1751459069286,15.4387508,2443.6,2443.0,0.7968]
[1751459070712,9.02231296,2443.6,2443.0,0.7968]
[1751459074983,9.02131296,2443.6,2443.0,0.7968]
[1751459075382,9.02131296,2443.6,2442.8,0.204]
[1751459075614,9.80111296,2443.6,2442.8,0.9583]
[1751459076713,49.80111296,2443.6,2442.8,0.9583]
[1751459076922,56.2175508,2443.6,2442.8,0.9583]
[1751459077123,57.83650017,2443.6,2442.8,0.9583]
[1751459077284,56.2175508,2443.6,2442.8,0.204]
[1751459078123,57.83650017,2443.6,2442.8,0.204]
[1751459078320,56.2175508,2443.6,2442.8,0.204]
[1751459078791,56.2175508,2443.6,2443.0,0.7848]
[1751459079187,57.83650017,2443.6,2443.0,0.7848]
[1751459079387,56.2175508,2443.6,2443.0,0.7848]
[1751459079817,49.5345508,2443.6,2443.0,0.7848]
[1751459080114,57.83750017,2443.6,2443.0,0.7848]
[1751459080317,56.2185508,2443.6,2443.0,0.7848]
[1751459081124,57.83750017,2443.6,2443.0,0.7848]
[1751459082593,27.83750017,2443.6,2443.0,0.7848]
[1751459082787,57.83750017,2443.6,2443.0,0.7848]
[1751459083211,57.83750017,2443.6,2442.8,0.204]
[1751459083388,57.83750017,2443.6,2442.8,0.9718]
[1751459083583,27.83750017,2443.6,2442.8,0.9718]
[1751459083920,56.2185508,2443.6,2442.8,0.204]
[1751459084090,58.6564691,2443.6,2442.8,0.204]
[1751459085226,56.2185508,2443.6,2442.9,0.7692]
[1751459086132,10.0,2443.5,2442.9,0.7692]
[1751459086329,1.6234704,2443.3,2442.9,0.7692]
[1751459086533,10.0,2443.1,2442.9,0.7692]
[1751459086733,0.96773523,2443.0,2442.9,0.7692]
[1751459088340,10.0,2443.1,2442.9,0.7692]
[1751459088541,0.97466725,2443.0,2442.9,0.7692]
[1751459093145,0.97466725,2443.0,2442.9,1.50816378]
[1751459094865,0.97466725,2443.0,2442.9,7.92460162]
[1751459095066,1.6234704,2443.5,2443.4,0.7555]
[1751459095232,1.6234704,2443.6,2443.4,0.7555]
[1751459095415,1.6234704,2443.6,2443.5,0.204]
[1751459095725,1.6234704,2443.7,2443.5,0.94159378]
[1751459095925,1.6234704,2443.7,2443.6,0.8127]
[1751459096338,1.6234704,2443.9,2443.6,0.8127]
[1751459097152,1.6234704,2444.0,2443.8,0.7913]
[1751459097653,1.62240252,2444.0,2443.8,0.7913]
[1751459097852,1.62240252,2444.0,2443.9,0.204]
[1751459098220,12.4352056,2444.3,2444.0,0.7892]
[1751459098430,2.4352056,2444.3,2444.0,0.7892]
[1751459100055,2.6592056,2444.4,2444.0,0.7892]
[1751459100355,12.4352056,2444.3,2443.5,0.73759378]
[1751459100662,0.204,2444.2,2443.8,0.204]
[1751459100823,16.41643784,2444.0,2443.8,0.204]
[1751459101158,0.204,2443.8,2443.5,0.8003]
[1751459101325,10.0,2443.7,2443.5,0.8003]
[1751459103421,6.884,2443.8,2443.5,0.8003]
[1751459107343,0.78564933,2443.7,2443.5,0.8003]
[1751459107539,0.78564933,2443.7,2443.4,0.204]
[1751459107540,10.0,2443.7,2443.4,0.204]
[1751459107747,10.0,2443.7,2443.2,0.8029]
[1751459107939,0.204,2443.6,2443.2,0.8029]
[1751459108644,1.17615167,2443.6,2443.2,0.8029]
[1751459109850,0.204,2443.6,2443.2,0.8029]
[1751459110153,10.97205255,2443.5,2443.2,0.8029]
[1751459111662,7.4422,2443.8,2443.2,0.8029]
[1751459111663,10.0,2443.7,2443.2,0.8029]
[1751459111832,10.0,2443.5,2443.3,0.204]
[1751459112029,6.679,2443.6,2443.3,0.204]
[1751459112453,7.65125288,2443.6,2443.3,0.204]
[1751459112765,6.679,2443.7,2443.4,0.8261]
[1751459112973,7.6512886,2443.7,2443.4,0.8261]
[1751459113135,6.679,2443.7,2443.5,0.204]
[1751459114065,0.97227238,2443.6,2443.5,0.204]
[1751459114569,0.97227238,2443.7,2443.5,0.204]
[1751459114786,6.679,2443.8,2443.5,0.204]
[1751459114988,0.97236465,2443.7,2443.5,0.204]
[1751459115267,6.679,2443.8,2443.5,0.204]
[1751459115437,0.9725039,2443.7,2443.5,0.204]
[1751459115634,0.234,2444.0,2443.5,0.204]
[1751459115875,6.679,2443.8,2443.5,0.204]
[1751459116063,0.9725321,2443.7,2443.5,0.204]
[1751459116260,6.678,2443.8,2443.5,0.204]
[1751459116441,0.97267417,2443.7,2443.5,0.204]
[1751459116644,0.234,2444.0,2443.5,0.204]
[1751459116964,0.97267134,2443.9,2443.5,0.204]
[1751459117160,7.65067134,2443.8,2443.5,0.204]
[1751459117366,0.97267134,2443.7,2443.5,0.204]
[1751459117565,6.678,2443.8,2443.5,0.204]
[1751459117777,0.97284017,2443.7,2443.5,0.204]
[1751459118077,6.678,2443.8,2443.5,0.204]
[1751459118266,0.97305003,2443.7,2443.5,0.204]
[1751459118466,6.678,2443.8,2443.5,0.204]
[1751459118679,0.97305014,2443.7,2443.5,0.204]
[1751459118859,6.678,2443.9,2443.5,0.204]
[1751459119058,0.97291448,2443.8,2443.5,0.204]
[1751459119257,0.97291448,2443.7,2443.5,0.204]
[1751459119459,0.97322382,2443.6,2443.5,0.204]
[1751459125380,0.97322382,2443.6,2443.3,0.204]
[1751459125544,0.97322382,2443.5,2443.3,0.204]
[1751459125745,10.8235,2444.0,2443.1,6.42643784]
[1751459125980,0.97500407,2443.9,2443.6,0.204]
[1751459126165,0.97500407,2443.8,2443.6,0.204]
[1751459126374,0.97500407,2443.7,2443.6,0.204]
[1751459126683,0.97500407,2443.7,2443.6,1.0063]
[1751459133986,0.03,2444.0,2443.6,1.0063]
[1751459134283,0.97482689,2443.9,2443.6,0.9963]
[1751459134588,0.97482689,2443.8,2443.6,0.9963]
[1751459134783,0.02,2444.0,2443.6,0.9963]
[1751459134984,0.97480635,2443.9,2443.6,0.9963]
[1751459135190,0.97480635,2443.8,2443.6,0.9963]
[1751459135377,0.97480635,2443.7,2443.6,0.194]
[1751459144571,1.77470635,2443.7,2443.5,0.01]
[1751459144815,0.97480635,2443.6,2443.5,0.01]
[1751459144973,1.81432077,2443.6,2443.5,0.01]
[1751459145789,11.81432077,2443.6,2443.5,0.01]
[1751459146269,1.81432077,2443.6,2443.5,0.01]
[1751459146570,0.97480635,2443.6,2443.5,0.01]
[1751459146870,0.97480635,2443.6,2443.5,0.00659094]
[1751459153009,0.97480635,2443.6,2443.5,0.21059094]
[1751459154576,1.77050635,2443.6,2443.5,0.00659094]
[1751459156910,1.77047764,2443.6,2443.5,0.00659094]
[1751459157084,4.42108417,2443.6,2443.5,0.00659094]
[1751459157280,13.44630653,2443.6,2443.5,0.00659094]
[1751459157606,14.42105389,2443.6,2443.5,0.00659094]
[1751459157787,21.09405389,2443.6,2443.5,0.00659094]
[1751459160188,20.29835389,2443.6,2443.5,0.00659094]
[1751459162925,20.29835053,2443.6,2443.5,0.00659094]
[1751459165720,0.974744,2443.6,2443.5,0.00659094]
[1751459165888,7.647744,2443.6,2443.5,0.21059094]
[1751459166389,0.974744,2443.6,2443.5,0.21059094]
[1751459168423,0.97515629,2443.6,2443.5,0.21059094]
[1751459175228,0.02,2443.7,2443.5,0.21059094]
[1751459175608,0.02,2443.7,2443.6,0.204]
[1751459175923,0.99513178,2443.7,2443.6,0.204]
[1751459176512,0.99513178,2443.7,2443.6,1.0344]
[1751459176808,0.99513178,2443.7,2443.6,8.19658072]
[1751459177009,0.02,2444.0,2443.7,0.8233]
[1751459177316,0.97510972,2443.9,2443.8,0.8233]
[1751459177627,0.97510972,2443.9,2443.8,1.0273]
[1751459178131,0.02,2444.0,2443.8,1.0273]
[1751459178347,0.02,2444.0,2443.8,0.204]
[1751459178645,0.02,2444.0,2443.5,0.00659094]
[1751459178804,0.97491235,2443.9,2443.7,0.204]
[1751459179000,0.97491235,2443.8,2443.7,0.204]
[1751459180323,0.97491235,2443.8,2443.5,0.00659094]
[1751459180605,0.8064,2443.7,2443.6,0.204]
[1751459181002,1.78108825,2443.7,2443.6,0.204]
[1751459181205,0.8064,2443.7,2443.6,0.204]
[1751459181403,1.78098034,2443.7,2443.6,0.204]
[1751459182538,2.64637837,2443.7,2443.5,0.00659094]
[1751459182704,1.67179803,2443.7,2443.5,0.00659094]
[1751459183414,0.97460413,2443.6,2443.5,0.00659094]
[1751459191148,0.9745216,2443.6,2443.5,0.00659094]
[1751459201968,0.9745216,2443.6,2443.5,0.21059094]
[1751459202461,0.9745216,2443.6,2443.5,1.00669094]
[1751459202629,0.9745216,2443.6,2443.5,1.74900382]
[1751459203028,0.02,2443.7,2443.6,0.8094]
[1751459203365,0.02,2443.7,2443.6,24.11416064]
[1751459205071,0.02,2443.7,2443.6,20.02183784]
[1751459205775,0.02,2443.7,2443.6,9.47183784]
[1751459205934,0.02,2443.7,2443.6,11.31241822]
[1751459206571,0.02,2443.7,2443.6,15.40474102]
[1751459207160,0.02,2443.7,2443.6,11.31241822]
[1751459209735,0.02,2443.7,2443.6,4.89598038]
[1751459210966,0.02,2443.7,2443.6,2.85398038]
[1751459211170,0.02,2443.7,2443.6,1.0134]
[1751459211966,0.02,2443.7,2443.6,0.204]
[1751459217162,0.02,2443.7,2443.6,0.9892]
[1751459219396,0.02,2443.7,2443.6,7.40563784]
[1751459222263,0.02,2443.7,2443.6,0.9892]
[1751459223008,0.02,2443.7,2443.6,1.93432288]
[1751459226490,0.02,2443.7,2443.6,8.35076072]
[1751459227788,0.02,2443.7,2443.6,12.44308352]
[1751459227973,0.02,2443.7,2443.6,19.10508352]
[1751459228316,0.02,2443.7,2443.6,29.65508352]
[1751459229192,0.02,2444.0,2443.9,15.39662045]
[1751459229381,0.02,2444.0,2443.9,32.03711968]
[1751459231898,0.02,2444.0,2443.9,32.3435726]
[1751459233699,0.02,2444.4,2444.3,5.42235084]
[1751459233895,0.02,2444.4,2444.3,20.53878868]
[1751459234087,0.02,2444.4,2444.3,20.74278868]
[1751459234277,0.02,2444.4,2444.3,23.22619537]
[1751459235107,0.02,2444.4,2444.3,33.22619537]
[1751459240716,0.02,2444.4,2444.3,33.42882176]
[1751459244782,0.02,2444.4,2444.3,24.01375753]
[1751459245476,0.02,2444.4,2444.3,24.76703656]
[1751459245680,0.02,2444.6,2444.5,14.64081611]
[1751459245878,0.02,2444.6,2444.5,32.55797819]
[1751459254792,0.02,2444.6,2444.5,32.76197819]
[1751459261387,0.02,2445.0,2444.9,14.86534683]
[1751459261608,0.02,2445.0,2444.9,30.52278467]
[1751459261813,0.02,2445.0,2444.9,30.72678467]
[1751459262122,0.02,2445.0,2444.9,32.85984396]
[1751459265116,0.02,2445.0,2444.9,21.02705929]
[1751459265706,0.02,2445.0,2444.9,25.11720612]
[1751459268320,0.02,2445.0,2444.9,22.84364396]
[1751459268528,0.02,2445.0,2444.9,31.53264396]
[1751459270028,0.02,2445.0,2444.9,32.88974396]
[1751459270318,0.02,2445.0,2444.9,24.20074396]
[1751459270524,0.02,2445.0,2444.9,32.08264396]
[1751459271025,0.02,2445.0,2444.9,31.53264396]
[1751459273442,0.02,2445.0,2444.9,21.02205929]
[1751459273601,0.02,2445.0,2444.9,25.11220612]
[1751459274820,0.02,2445.0,2444.9,21.02205929]
[1751459275022,0.02,2445.0,2444.9,25.11220612]
[1751459275798,0.02,2445.0,2444.9,12.33705929]
[1751459276003,0.7926,2445.0,2444.9,18.889]
[1751459279121,0.7926,2445.0,2444.9,0.204]
[1751459283933,0.02,2445.0,2444.9,0.204]
[1751459284442,0.02,2445.0,2444.9,6.855]
[1751459285922,0.7846,2445.0,2444.9,6.855]
[1751459288647,0.7846,2445.0,2444.9,0.204]
[1751459290822,0.02,2445.0,2444.9,0.204]
[1751459299262,0.02,2445.0,2444.9,1.91086644]
[1751459301034,0.02,2445.0,2444.9,8.55986644]
[1751459305769,0.02,2445.0,2444.9,0.204]
[1751459306262,0.02,2445.0,2444.6,0.02]
[1751459306263,0.8111,2444.9,2444.6,0.02]